fUSD/lending_fUSD_20241104
["ID","MTS","AMOUNT","RATE_DAILY","PERIOD"]
[341250317,1730725910810,-500.0,0.0003863,2]
[341250318,1730725910819,-1165.65,0.0003863,2]
[341250319,1730725910829,-500.0,0.0003863,2]
[341250320,1730725910840,-500.0,0.0003863,2]
[341250321,1730725910852,-512.83,0.0003863,2]
[341250322,1730725910861,-500.0,0.0003863,2]
[341250323,1730725910871,-1331.81,0.0003863,2]
[341250324,1730725910880,-972.11,0.0003863,2]
[341250325,1730725910889,-500.0,0.0003863,2]
[341250326,1730725910899,-500.0,0.0003863,2]
[341250327,1730725910908,-500.0,0.0003863,2]
[341250328,1730725910917,-562.05442197,0.0003863,2]
[341250329,1730725910926,-500.0,0.0003863,2]
[341250330,1730725910936,-500.0,0.0003863,2]
[341250331,1730725910945,-1002.08,0.0003863,2]
[341250332,1730725910954,-500.0,0.0003863,2]
[341250333,1730725910963,-240.30426726,0.0003863,2]
[341250334,1730725910973,-500.0,0.0003863,2]
[341250335,1730725910983,-187.80539449,0.0003863,2]
[341250336,1730725910998,-1341.72,0.0003863,2]
[341250337,1730725911015,-500.0,0.0003863,2]
[341250338,1730725911031,-1042.98,0.0003863,2]
[341250339,1730725911050,-500.0,0.0003863,2]
[341250340,1730725911069,-1342.69,0.0003863,2]
[341250341,1730725911086,-7421.53,0.0003863,2]
[341250342,1730725911103,-3370.41,0.0003863,2]
[341250343,1730725911118,-500.0,0.0003863,2]
[341250344,1730725911134,-624.26,0.0003863,2]
[341250345,1730725911151,-707.91,0.0003863,2]
[341250346,1730725911170,-10707.45,0.0003863,2]
[341250347,1730725911184,-500.0,0.0003863,2]
[341250348,1730725911201,-500.0,0.0003863,2]
[341250349,1730725911216,-500.0,0.0003863,2]
[341250350,1730725911233,-831.55,0.0003863,2]
[341250351,1730725911248,-500.0,0.0003863,2]
[341250352,1730725911263,-1217.0,0.0003863,2]
[341250353,1730725911277,-2695.19,0.0003863,2]
[341250354,1730725911292,-500.0,0.0003863,2]
[341250355,1730725911307,-500.0,0.0003863,2]
[341250356,1730725911321,-500.0,0.0003863,2]
[341250357,1730725911335,-575.84,0.0003863,2]
[341250358,1730725911351,-3535.86,0.0003863,2]
[341250359,1730725911366,-646.31,0.0003863,2]
[341250360,1730725911380,-540.81,0.0003863,2]
[341250361,1730725911395,-830.33,0.0003863,2]
[341250362,1730725911410,-500.0,0.0003863,2]
[341250363,1730725911425,-845.84,0.0003863,2]
[341250364,1730725911440,-2000.0,0.0003863,2]
[341250365,1730725911455,-918.13,0.0003863,2]
[341250366,1730725911471,-243.41489002,0.0003863,2]
[341250367,1730725911487,-1204.33,0.0003863,2]
[341250368,1730725911502,-500.0,0.0003863,2]
[341250369,1730725911517,-749.48,0.0003863,2]
[341250370,1730725911532,-1387.35,0.0003863,2]
[341250371,1730725911548,-1564.21,0.0003863,2]
[341250372,1730725911564,-806.53,0.0003863,2]
[341250373,1730725911579,-639.84303769,0.0003863,2]
[341250374,1730725911594,-5168.13,0.0003863,2]
[341250375,1730725911609,-10163.36,0.0003863,2]
[341250376,1730725911628,-2866.16,0.0003863,2]
[341250377,1730725911643,-500.0,0.0003863,2]
[341250378,1730725911658,-691.73,0.0003863,2]
[341250379,1730725911673,-1019.92,0.0003863,2]
[341250380,1730725911689,-5461.87,0.0003863,2]
[341250381,1730725911704,-2771.6,0.0003863,2]
[341250382,1730725911718,-500.0,0.0003863,2]
[341250383,1730725911734,-500.0,0.0003863,2]
[341250384,1730725911749,-10956.67,0.0003863,2]
[341250385,1730725911767,-1965.9,0.0003863,2]
[341250386,1730725911781,-1761.84,0.0003863,2]
[341250387,1730725911796,-1595.14,0.0003863,2]
[341250388,1730725911810,-500.0,0.0003863,2]
[341250389,1730725911824,-568.68,0.0003863,2]
[341250390,1730725911841,-500.0,0.0003863,2]
[341250391,1730725911856,-500.0,0.0003863,2]
[341250392,1730725911871,-10530.0,0.0003863,2]
[341250393,1730725911885,-491.04454622,0.0003863,2]
[341250394,1730725911900,-1163.57,0.0003863,2]
[341250395,1730725911914,-1268.02,0.0003863,2]
[341250396,1730725911929,-500.0,0.0003863,2]
[341250397,1730725911943,-1038.33,0.0003863,2]
[341250398,1730725911959,-529.02,0.0003863,2]
[341250399,1730725911974,-500.0,0.0003863,2]
[341250400,1730725911989,-2034.7,0.0003863,2]
[341250401,1730725912004,-334.70992036,0.0003863,2]
[341250402,1730725912018,-755.3,0.0003863,2]
[341250403,1730725912033,-1475.39,0.0003863,2]
[341250404,1730725912048,-500.0,0.0003863,2]
[341250405,1730725912062,-901.25,0.0003863,2]
[341250406,1730725912076,-4571.88,0.0003863,2]
[341250407,1730725912091,-5855.7,0.0003863,2]
[341250408,1730725912107,-1827.95,0.0003863,2]
[341250409,1730725912120,-780.78,0.0003863,2]
[341250410,1730725912135,-466.54873939,0.0003863,2]
[341250411,1730725912148,-541.5,0.0003863,2]
[341250412,1730725912164,-500.0,0.0003863,2]
[341250413,1730725912179,-1576.72,0.0003863,2]
[341250414,1730725912193,-500.0,0.0003863,2]
[341250415,1730725912208,-500.0,0.0003863,2]
[341250416,1730725912222,-976.95,0.0003863,2]
[341250417,1730725912237,-3971.77,0.0003863,2]
[341250418,1730725912251,-500.0,0.0003863,2]
[341250419,1730725912264,-410.23417369,0.0003863,2]
[341250420,1730725912278,-500.0,0.0003863,2]
[341250421,1730725912293,-500.0,0.0003863,2]
[341250422,1730725912307,-406.453,0.00038729,2]
[341250423,1730725912321,-2906.0,0.00038729,2]
[341250424,1730725912335,-27938.15376518,0.000388,2]
[341250425,1730725912352,-2709.96,0.000388,14]
[341250426,1730725912366,-500.0,0.00038904,2]
[341250427,1730725912380,-500.0,0.00038904,2]
[341250428,1730725912393,-580.29,0.00038904,2]
[341250429,1730725912408,-207.01689001,0.00038904,2]
[341250430,1730725912421,-500.0,0.00038904,2]
[341250431,1730725912435,-1598.15,0.00038904,2]
[341250432,1730725912448,-570.89,0.00038904,2]
[341250433,1730725912641,-956.54,0.00038904,7]
[341250434,1730725912651,-1552.92,0.00038904,2]
[341250435,1730725912661,-767.02,0.00038904,2]
[341250436,1730725912670,-500.0,0.00038904,2]
[341250437,1730725912679,-526.65013457,0.00038904,2]
[341250438,1730725912688,-530.64,0.00038904,2]
[341250439,1730725912699,-500.0,0.00038904,2]
[341250440,1730725912708,-1163.84,0.00038904,2]
[341250441,1730725912718,-500.0,0.00038904,2]
[341250442,1730725912727,-500.0,0.00038904,2]
[341250443,1730725912737,-500.0,0.00038904,2]
[341250444,1730725912746,-500.0,0.00038904,2]
[341250445,1730725912756,-614.39,0.00038904,2]
[341250446,1730725912770,-641.85,0.00038904,2]
[341250447,1730725912780,-750.25,0.00038904,2]
[341250448,1730725912790,-458.99686912,0.00038904,2]
[341250449,1730725912799,-1037.16,0.00038904,2]
[341250450,1730725912810,-500.0,0.00038904,2]
[341250451,1730725912820,-538.4,0.00038904,2]
[341250452,1730725912829,-500.0,0.00038904,2]
[341250453,1730725912841,-500.0,0.00038904,2]
[341250454,1730725912853,-927.41,0.00038904,2]
[341250455,1730725912863,-607.03,0.00038904,2]
[341250456,1730725912872,-500.0,0.00038904,2]
[341250457,1730725912881,-500.0,0.00038904,2]
[341250458,1730725912891,-527.13,0.00038904,2]
[341250459,1730725912900,-500.0,0.00038904,2]
[341250460,1730725912910,-500.0,0.00038904,2]
[341250461,1730725912921,-500.0,0.00038904,2]
[341250462,1730725912931,-500.0,0.00038904,2]
[341250463,1730725912941,-500.0,0.00038904,2]
[341250464,1730725912950,-500.0,0.00038904,2]
[341250465,1730725912960,-250.0,0.00038904,2]
[341250466,1730725912969,-500.0,0.00038904,2]
[341250467,1730725912979,-500.0,0.00038904,2]
[341250468,1730725912988,-500.0,0.00038904,2]
[341250469,1730725912997,-1674.02,0.00038904,120]
[341250470,1730725913007,-500.0,0.00038904,2]
[341250471,1730725913017,-635.70902738,0.00038904,2]
[341250472,1730725913028,-539.9783511,0.00038904,2]
[341250473,1730725913039,-3101.46,0.00038904,2]
[341250474,1730725913049,-809.09,0.00038904,2]
[341250475,1730725913060,-500.0,0.00038904,2]
[341250476,1730725913070,-620.71,0.00038904,2]
[341250477,1730725913079,-500.0,0.00038904,2]
[341250478,1730725913090,-1809.12,0.00038904,2]
[341250479,1730725913099,-500.0,0.00038904,2]
[341250480,1730725913110,-500.0,0.00038904,2]
[341250481,1730725913120,-500.0,0.00038904,2]
[341250482,1730725913129,-601.59,0.00038904,2]
[341250483,1730725913139,-327.06683715,0.00038904,2]
[341250484,1730725913149,-500.0,0.00038904,2]
[341250485,1730725913159,-500.0,0.00038904,2]
[341250486,1730725913169,-1995.05,0.00038904,2]
[341250487,1730725913178,-1008.77,0.00038904,2]
[341250488,1730725913188,-500.0,0.00038904,2]
[341250489,1730725913198,-500.0,0.00038904,2]
[341250490,1730725913207,-623.02,0.00038904,2]
[341250491,1730725913218,-500.0,0.00038904,2]
[341250492,1730725913227,-500.0,0.00038904,2]
[341250493,1730725913237,-500.0,0.00038904,2]
[341250494,1730725913246,-500.0,0.00038904,2]
[341250495,1730725913255,-500.0,0.00038904,2]
[341250496,1730725913264,-500.0,0.00038904,2]
[341250497,1730725913273,-500.0,0.00038904,2]
[341250498,1730725913283,-157.18,0.00038904,2]
[341250499,1730725913292,-500.0,0.00038904,2]
[341250500,1730725913301,-1165.65,0.00038904,2]
[341250501,1730725913311,-500.0,0.00038904,2]
[341250502,1730725913321,-500.0,0.00038904,2]
[341250503,1730725913330,-512.83,0.00038904,2]
[341250504,1730725913341,-500.0,0.00038904,2]
[341250505,1730725913352,-1331.81,0.00038904,2]
[341250506,1730725913362,-972.11,0.00038904,2]
[341250507,1730725913371,-500.0,0.00038904,2]
[341250508,1730725913381,-500.0,0.00038904,2]
[341250509,1730725913391,-500.0,0.00038904,2]
[341250510,1730725913401,-500.0,0.00038904,2]
[341250511,1730725913410,-493.88498371,0.00038904,2]
[341250512,1730725913420,-1002.08,0.00038904,2]
[341250513,1730725913430,-500.0,0.00038904,2]
[341250514,1730725913439,-500.0,0.00038904,2]
[341250515,1730725913449,-1341.72,0.00038904,2]
[341250516,1730725913459,-500.0,0.00038904,2]
[341250517,1730725913469,-1042.98,0.00038904,2]
[341250518,1730725913479,-500.0,0.00038904,2]
[341250519,1730725913489,-1342.69,0.00038904,2]
[341250520,1730725913499,-7421.53,0.00038904,2]
[341250521,1730725913509,-3370.41,0.00038904,2]
[341250522,1730725913518,-500.0,0.00038904,2]
[341250523,1730725913528,-624.26,0.00038904,2]
[341250524,1730725913538,-707.91,0.00038904,2]
[341250525,1730725913548,-10707.45,0.00038904,2]
[341250526,1730725913557,-500.0,0.00038904,2]
[341250527,1730725913566,-500.0,0.00038904,2]
[341250528,1730725913576,-500.0,0.00038904,2]
[341250529,1730725913586,-831.55,0.00038904,2]
[341250530,1730725913596,-500.0,0.00038904,2]
[341250531,1730725913607,-1217.0,0.00038904,2]
[341250532,1730725913617,-2695.19,0.00038904,2]
[341250533,1730725913627,-500.0,0.00038904,2]
[341250534,1730725913636,-500.0,0.00038904,2]
[341250535,1730725913646,-257.14469935,0.00038904,2]
[341250536,1730725913655,-575.84,0.00038904,2]
[341250537,1730725913665,-3535.86,0.00038904,2]
[341250538,1730725913674,-646.31,0.00038904,2]
[341250539,1730725913684,-540.81,0.00038904,2]
[341250540,1730725913693,-830.33,0.00038904,2]
[341250541,1730725913702,-500.0,0.00038904,2]
[341250542,1730725913713,-845.84,0.00038904,2]
[341250543,1730725913723,-2000.0,0.00038904,2]
[341250544,1730725913732,-918.13,0.00038904,2]
[341250545,1730725913742,-1204.33,0.00038904,2]
[341250546,1730725913752,-500.0,0.00038904,2]
[341250547,1730725913765,-749.48,0.00038904,2]
[341250548,1730725913775,-1387.35,0.00038904,2]
[341250549,1730725913785,-1564.21,0.00038904,2]
[341250550,1730725913794,-806.53,0.00038904,2]
[341250551,1730725913804,-5168.13,0.00038904,2]
[341250552,1730725913815,-10163.36,0.00038904,2]
[341250553,1730725913825,-2866.16,0.00038904,2]
[341250554,1730725913835,-500.0,0.00038904,2]
[341250555,1730725913845,-691.73,0.00038904,2]
[341250556,1730725913858,-1019.92,0.00038904,2]
[341250557,1730725913870,-5461.87,0.00038904,2]
[341250558,1730725913879,-2771.6,0.00038904,2]
[341250559,1730725913889,-500.0,0.00038904,2]
[341250560,1730725913898,-500.0,0.00038904,2]
[341250561,1730725913909,-10956.67,0.00038904,2]
[341250562,1730725913918,-1965.9,0.00038904,2]
[341250563,1730725913928,-1761.84,0.00038904,2]
[341250564,1730725913938,-1595.14,0.00038904,2]
[341250565,1730725913947,-500.0,0.00038904,2]
[341250566,1730725913956,-568.68,0.00038904,2]
[341250567,1730725913966,-500.0,0.00038904,2]
[341250568,1730725913974,-500.0,0.00038904,2]
[341250569,1730725913984,-10530.0,0.00038904,2]
[341250570,1730725913993,-1163.57,0.00038904,2]
[341250571,1730725914002,-1268.02,0.00038904,2]
[341250572,1730725914012,-500.0,0.00038904,2]
[341250573,1730725914022,-529.02,0.00038904,2]
[341250574,1730725914032,-1038.33,0.00038904,2]
[341250575,1730725914042,-500.0,0.00038904,2]
[341250576,1730725914051,-2034.7,0.00038904,2]
[341250577,1730725914060,-755.3,0.00038904,2]
[341250578,1730725914069,-1475.39,0.00038904,2]
[341250579,1730725914079,-500.0,0.00038904,2]
[341250580,1730725914089,-901.25,0.00038904,2]
[341250581,1730725914098,-4571.88,0.00038904,2]
[341250582,1730725914108,-5855.7,0.00038904,2]
[341250583,1730725914117,-1827.95,0.00038904,2]
[341250584,1730725914127,-780.78,0.00038904,2]
[341250585,1730725914137,-541.5,0.00038904,2]
[341250586,1730725914146,-500.0,0.00038904,2]
[341250587,1730725914155,-1576.72,0.00038904,2]
[341250588,1730725914165,-500.0,0.00038904,2]
[341250589,1730725914175,-500.0,0.00038904,2]
[341250590,1730725914184,-976.95,0.00038904,2]
[341250591,1730725914194,-3971.77,0.00038904,2]
[341250592,1730725914203,-500.0,0.00038904,2]
[341250593,1730725914213,-500.0,0.00038904,2]
[341250594,1730725914223,-500.0,0.00038904,2]
[341250595,1730725914232,-239.75827934,0.00038904,2]
[341250596,1730725914242,-217.29163824,0.00038982,2]
[341250597,1730725914251,-11760.11730255,0.00039,2]
[341250598,1730725914260,-13862.56977385,0.00039,7]
[341250599,1730725914270,-10931.36362723,0.00039,7]
[341250600,1730725914279,-474.16719964,0.00039,120]
[341250601,1730725914289,-568.93729407,0.00039,120]
[341250602,1730725914298,-211.63040784,0.00039,120]
[341250603,1730725914308,-700.0,0.00039,2]
[341250604,1730725914317,-2440.97,0.00039028,2]
[341250605,1730725914327,-800.0,0.00039029,60]
[341250606,1730725914336,-537.89478076,0.00039029,60]
[341250607,1730725914345,-500.0,0.00039029,60]
[341250608,1730725914356,-4515.86,0.00039041,120]
[341250609,1730725914365,-207.30812,0.00039088,7]
[341250610,1730725914374,-1007.32,0.000391,34]
[341250611,1730725914384,-150.0,0.00039103,2]
[341250612,1730725914394,-13601.0,0.00039103,2]
[341250613,1730725914404,-3754.56087733,0.00039119,2]
[341250614,1730725914413,-500.0,0.00039178,2]
[341250615,1730725914422,-500.0,0.00039178,2]
[341250616,1730725914431,-580.29,0.00039178,2]
[341250617,1730725914441,-500.0,0.00039178,2]
[341250618,1730725914450,-1598.15,0.00039178,2]
[341250619,1730725914460,-570.89,0.00039178,2]
[341250620,1730725914469,-956.54,0.00039178,7]
[341250621,1730725914478,-1552.92,0.00039178,2]
[341250622,1730725914488,-767.02,0.00039178,2]
[341250623,1730725914497,-500.0,0.00039178,2]
[341250624,1730725914506,-530.64,0.00039178,2]
[341250625,1730725914516,-500.0,0.00039178,2]
[341250626,1730725914526,-1163.84,0.00039178,2]
[341250627,1730725914535,-500.0,0.00039178,2]
[341250628,1730725914545,-500.0,0.00039178,2]
[341250629,1730725914554,-516.40455007,0.00039178,2]
[341250630,1730725914564,-506.83953587,0.00039178,2]
[341250631,1730725914574,-614.39,0.00039178,2]
[341250632,1730725914584,-641.85,0.00039178,2]
[341250633,1730725914594,-750.25,0.00039178,2]
[341250634,1730725914604,-1037.16,0.00039178,2]
[341250635,1730725914613,-500.0,0.00039178,2]
[341250636,1730725914623,-538.4,0.00039178,2]
[341250637,1730725914632,-500.0,0.00039178,2]
[341250638,1730725914642,-500.0,0.00039178,2]
[341250639,1730725914652,-927.41,0.00039178,2]
[341250640,1730725914663,-607.03,0.00039178,2]
[341250641,1730725914672,-500.0,0.00039178,2]
[341250642,1730725914682,-500.0,0.00039178,2]
[341250643,1730725914692,-527.13,0.00039178,2]
[341250644,1730725914701,-500.0,0.00039178,2]
[341250645,1730725914711,-500.0,0.00039178,2]
[341250646,1730725914720,-500.0,0.00039178,2]
[341250647,1730725914730,-500.0,0.00039178,2]
[341250648,1730725914739,-360.5955701,0.00039178,2]
[341250649,1730725914877,-500.0,0.00039178,2]
[341250650,1730725914890,-250.0,0.00039178,2]
[341250651,1730725914900,-500.3983218,0.00039178,2]
[341250652,1730725914909,-500.0,0.00039178,2]
[341250653,1730725914919,-326.70456493,0.00039178,2]
[341250654,1730725914928,-1674.02,0.00039178,120]
[341250655,1730725914938,-500.0,0.00039178,2]
[341250656,1730725914947,-3101.46,0.00039178,2]
[341250657,1730725914957,-809.09,0.00039178,2]
[341250658,1730725914966,-500.0,0.00039178,2]
[341250659,1730725914976,-620.71,0.00039178,2]
[341250660,1730725914985,-500.0,0.00039178,2]
[341250661,1730725914994,-1809.12,0.00039178,2]
[341250662,1730725915003,-500.0,0.00039178,2]
[341250663,1730725915013,-500.0,0.00039178,2]
[341250664,1730725915023,-500.0,0.00039178,2]
[341250665,1730725915033,-601.59,0.00039178,2]
[341250666,1730725915042,-500.0,0.00039178,2]
[341250667,1730725915051,-500.0,0.00039178,2]
[341250668,1730725915061,-1995.05,0.00039178,2]
[341250669,1730725915070,-1008.77,0.00039178,2]
[341250670,1730725915080,-500.0,0.00039178,2]
[341250671,1730725915089,-500.0,0.00039178,2]
[341250672,1730725915099,-623.02,0.00039178,2]
[341250673,1730725915110,-500.0,0.00039178,2]
[341250674,1730725915121,-500.0,0.00039178,2]
[341250675,1730725915131,-421.62862024,0.00039178,2]
[341250676,1730725915140,-500.0,0.00039178,2]
[341250677,1730725915149,-500.0,0.00039178,2]
[341250678,1730725915159,-227.53384267,0.00039178,2]
[341250679,1730725915168,-500.0,0.00039178,2]
[341250680,1730725915177,-157.18,0.00039178,2]
[341250681,1730725915186,-500.0,0.00039178,2]
[341250682,1730725915196,-1165.65,0.00039178,2]
[341250683,1730725915206,-500.0,0.00039178,2]
[341250684,1730725915215,-500.0,0.00039178,2]
[341250685,1730725915224,-500.0,0.00039178,2]
[341250686,1730725915233,-512.83,0.00039178,2]
[341250687,1730725915242,-1331.81,0.00039178,2]
[341250688,1730725915252,-972.11,0.00039178,2]
[341250689,1730725915261,-500.0,0.00039178,2]
[341250690,1730725915271,-500.0,0.00039178,2]
[341250691,1730725915281,-500.0,0.00039178,2]
[341250692,1730725915291,-500.0,0.00039178,2]
[341250693,1730725915301,-1002.08,0.00039178,2]
[341250694,1730725915311,-500.0,0.00039178,2]
[341250695,1730725915320,-500.0,0.00039178,2]
[341250696,1730725915330,-1341.72,0.00039178,2]
[341250697,1730725915339,-214.76042566,0.00039178,2]
[341250698,1730725915349,-1042.98,0.00039178,2]
[341250699,1730725915362,-500.0,0.00039178,2]
[341250700,1730725915372,-1342.69,0.00039178,2]
[341250701,1730725915381,-7421.53,0.00039178,2]
[341250702,1730725915391,-3370.41,0.00039178,2]
[341250703,1730725915400,-431.53275685,0.00039178,2]
[341250704,1730725915409,-624.26,0.00039178,2]
[341250705,1730725915418,-707.91,0.00039178,2]
[341250706,1730725915427,-10707.45,0.00039178,2]
[341250707,1730725915437,-500.0,0.00039178,2]
[341250708,1730725915446,-500.0,0.00039178,2]
[341250709,1730725915456,-500.0,0.00039178,2]
[341250710,1730725915465,-831.55,0.00039178,2]
[341250711,1730725915475,-500.0,0.00039178,2]
[341250712,1730725915484,-1217.0,0.00039178,2]
[341250713,1730725915493,-2695.19,0.00039178,2]
[341250714,1730725915503,-500.0,0.00039178,2]
[341250715,1730725915513,-500.0,0.00039178,2]
[341250716,1730725915522,-575.84,0.00039178,2]
[341250717,1730725915532,-3535.86,0.00039178,2]
[341250718,1730725915541,-646.31,0.00039178,2]
[341250719,1730725915551,-540.81,0.00039178,2]
[341250720,1730725915560,-830.33,0.00039178,2]
[341250721,1730725915569,-500.0,0.00039178,2]
[341250722,1730725915579,-845.84,0.00039178,2]
[341250723,1730725915588,-2000.0,0.00039178,2]
[341250724,1730725915598,-918.13,0.00039178,2]
[341250725,1730725915611,-1204.33,0.00039178,2]
[341250726,1730725915621,-500.0,0.00039178,2]
[341250727,1730725915630,-749.48,0.00039178,2]
[341250728,1730725915640,-1387.35,0.00039178,2]
[341250729,1730725915649,-1564.21,0.00039178,2]
[341250730,1730725915658,-806.53,0.00039178,2]
[341250731,1730725915668,-5168.13,0.00039178,2]
[341250732,1730725915678,-10163.36,0.00039178,2]
[341250733,1730725915688,-2866.16,0.00039178,2]
[341250734,1730725915697,-500.0,0.00039178,2]
[341250735,1730725915707,-691.73,0.00039178,2]
[341250736,1730725915716,-1019.92,0.00039178,2]
[341250737,1730725915726,-5461.87,0.00039178,2]
[341250738,1730725915737,-2771.6,0.00039178,2]
[341250739,1730725915747,-500.0,0.00039178,2]
[341250740,1730725915757,-500.0,0.00039178,2]
[341250741,1730725915772,-10956.67,0.00039178,2]
[341250742,1730725915782,-1965.9,0.00039178,2]
[341250743,1730725915791,-1761.84,0.00039178,2]
[341250744,1730725915800,-1595.14,0.00039178,2]
[341250745,1730725915810,-500.0,0.00039178,2]
[341250746,1730725915820,-568.68,0.00039178,2]
[341250747,1730725915830,-500.0,0.00039178,2]
[341250748,1730725915839,-500.0,0.00039178,2]
[341250749,1730725915849,-10530.0,0.00039178,2]
[341250750,1730725915862,-1163.57,0.00039178,2]
[341250751,1730725915872,-1268.02,0.00039178,2]
[341250752,1730725915882,-500.0,0.00039178,2]
[341250753,1730725915891,-529.02,0.00039178,2]
[341250754,1730725915901,-1038.33,0.00039178,2]
[341250755,1730725915910,-197.42123464,0.00039178,2]
[341250756,1730725915919,-2034.7,0.00039178,2]
[341250757,1730725915930,-755.3,0.00039178,2]
[341250758,1730725915940,-1475.39,0.00039178,2]
[341250759,1730725915950,-223.49861023,0.00039178,2]
[341250760,1730725915959,-901.25,0.00039178,2]
[341250761,1730725915967,-4571.88,0.00039178,2]
[341250762,1730725915977,-5855.7,0.00039178,2]
[341250763,1730725915986,-1827.95,0.00039178,2]
[341250764,1730725915996,-780.78,0.00039178,2]
[341250765,1730725916006,-541.5,0.00039178,2]
[341250766,1730725916015,-500.0,0.00039178,2]
[341250767,1730725916025,-1576.72,0.00039178,2]
[341250768,1730725916035,-500.0,0.00039178,2]
[341250769,1730725916044,-500.0,0.00039178,2]
[341250770,1730725916054,-976.95,0.00039178,2]
[341250771,1730725916063,-3971.77,0.00039178,2]
[341250772,1730725916073,-500.0,0.00039178,2]
[341250773,1730725916082,-500.0,0.00039178,2]
[341250774,1730725916091,-500.0,0.00039178,2]
[341250775,1730725916101,-8670.42192342,0.00039189,15]
[341250776,1730725916112,-207.30812,0.00039288,7]
[341250777,1730725916121,-152.0,0.00039312,6]
[341250778,1730725916130,-2500.0,0.00039445,2]
[341250779,1730725916140,-500.0,0.00039452,2]
[341250780,1730725916149,-500.0,0.00039452,2]
[341250781,1730725916158,-580.29,0.00039452,2]
[341250782,1730725916167,-330.22491193,0.00039452,2]
[341250783,1730725916178,-1598.15,0.00039452,2]
[341250784,1730725916188,-570.89,0.00039452,2]
[341250785,1730725916197,-956.54,0.00039452,7]
[341250786,1730725916206,-1552.92,0.00039452,2]
[341250787,1730725916216,-767.02,0.00039452,2]
[341250788,1730725916225,-299.75519103,0.00039452,2]
[341250789,1730725916235,-530.64,0.00039452,2]
[341250790,1730725916247,-500.0,0.00039452,2]
[341250791,1730725916258,-1163.84,0.00039452,2]
[341250792,1730725916267,-500.0,0.00039452,2]
[341250793,1730725916277,-500.0,0.00039452,2]
[341250794,1730725916286,-614.39,0.00039452,2]
[341250795,1730725916296,-641.85,0.00039452,2]
[341250796,1730725916305,-750.25,0.00039452,2]
[341250797,1730725916316,-1037.16,0.00039452,2]
[341250798,1730725916327,-500.0,0.00039452,2]
[341250799,1730725916339,-538.4,0.00039452,2]
[341250800,1730725916348,-500.0,0.00039452,2]
[341250801,1730725916361,-247.70055637,0.00039452,2]
[341250802,1730725916370,-927.41,0.00039452,2]
[341250803,1730725916380,-607.03,0.00039452,2]
[341250804,1730725916390,-330.30063851,0.00039452,2]
[341250805,1730725916399,-500.0,0.00039452,2]
[341250806,1730725916409,-527.13,0.00039452,2]
[341250807,1730725916418,-500.0,0.00039452,2]
[341250808,1730725916428,-632.70141095,0.00039452,2]
[341250809,1730725916437,-500.0,0.00039452,2]
[341250810,1730725916447,-369.17881115,0.00039452,2]
[341250811,1730725916457,-396.15280571,0.00039452,2]
[341250812,1730725916467,-250.0,0.00039452,2]
[341250813,1730725916477,-500.0,0.00039452,2]
[341250814,1730725916486,-1674.02,0.00039452,120]
[341250815,1730725916496,-500.0,0.00039452,2]
[341250816,1730725916506,-3101.46,0.00039452,2]